{"text_format":"1","workbook":"xlsx","n_sheets":1,"sheets":["EquipmentPlan"],"not_rendered":{"charts":0,"images":1,"macros":1,"external_links":0,"defined_names":134,"comments":1,"pivot_tables":0},"unopened":[],"bounds":{"document_bytes":16777216,"sheet_cells":100000,"rows_first":2000,"rows_last":500,"rows_between":2000,"halvings":0,"cell_chars":16384,"cell_head_chars":4096},"cells_cut":0,"cells_raw":0,"read":"whole","date_system":"1900"}

{"sheet":"EquipmentPlan","index":0,"n_rows":46,"n_cols":104,"rows_kept":46,"cut":false,"hidden":false,"merged":[]}
[]
[]
[]
[]
[]
[]
[]
[]
[]
[]
[]
[]
[]
[]
[]
[null,"L1","L2","L3","L4","L5","L6","L7","L8","L9","L\n10","L\n11","L\n12","Spalte1","Spalte63","Spalte64","Spalte65","Spalte66","Spalte67","Spalte68","Spalte69","Spalte70","Spalte71","Spalte72","Spalte73","Spalte74","Spalte75","Spalte76","Spalte77","Spalte78","Spalte79","Spalte87","Spalte80","Spalte81","Element","Spalte89","Spalte90","Spalte91","Spalte82","Spalte83","Spalte84","Spalte85","Spalte86","Spalte2","Spalte3","Spalte6","Spalte7","Spalte8","Spalte9","Spalte10","Spalte11","Spalte12","Spalte13","Spalte14","Spalte15","Spalte16","Spalte17","Spalte18","Spalte19","Spalte20","Spalte21","Spalte22","Spalte4","Spalte5","Spalte23","Spalte24","Spalte25","Spalte26","Spalte27","Spalte28","Spalte29","Spalte30","Spalte31","Spalte32","Spalte33","Spalte34","Spalte35","Spalte36","Spalte37","Spalte38","Spalte39","Spalte40","Spalte41","Spalte42","Spalte43","Spalte44","Spalte45","Spalte46","Spalte47","Spalte48","Spalte49","Spalte50","Spalte51","Spalte52","Spalte53","Spalte54","Spalte55","Spalte56","Spalte57","Spalte58","Spalte59","Spalte60","Spalte61","Spalte62"]
[null,"Kategorie 1","Kategorie 1.1","Kategorie 1.1.1",null,null,null,null,null,null,null,null,null,null,null,null,null,null,null,null,null,null,null,null,null,null,null,null,null,null,null,null,null,null,"Element A","Bb","Zusatz","Y",null,null,null,null,null,"-",null,"-",null,"-",null,null,null,null,null,null,null,null,null,null,null,null,null,null,null,null,"Test",null,null,null,{"$f":"IF(tblElemente[[#This Row],[Spalte78]]=\"elem\",tblElemente[[#This Row],[Spalte23]]&\" - \"&tblElemente[[#This Row],[Element]]&\" \"&tblElemente[[#This Row],[Spalte89]]&IF(tblElemente[[#This Row],[Spalte90]]=\"\",\"\",\" - \"&tblElemente[[#This Row],[Spalte90]])&IF(tblElemente[[#This Row],[Spalte91]]=\"\",\"\",\" (\"&tblElemente[[#This Row],[Spalte91]]&\")\"),\"\")","v":""}]
[null,"Kategorie 1","Kategorie 1.1","Kategorie 1.1.1",null,null,null,null,null,null,null,null,null,null,null,null,null,null,null,null,null,null,null,null,null,null,null,null,null,null,null,null,null,null,"Element B",null,null,null,null,null,null,null,null,null,null,null,null,null,null,null,null,null,null,null,null,null,null,null,null,null,null,null,null,null,null,null,null,null,{"$f":"IF(tblElemente[[#This Row],[Spalte78]]=\"elem\",tblElemente[[#This Row],[Spalte23]]&\" - \"&tblElemente[[#This Row],[Element]]&\" \"&tblElemente[[#This Row],[Spalte89]]&IF(tblElemente[[#This Row],[Spalte90]]=\"\",\"\",\" - \"&tblElemente[[#This Row],[Spalte90]])&IF(tblElemente[[#This Row],[Spalte91]]=\"\",\"\",\" (\"&tblElemente[[#This Row],[Spalte91]]&\")\"),\"\")","v":""}]
[null,"Kategorie 1","Kategorie 1.1","Kategorie 1.1.1",null,null,null,null,null,null,null,null,null,null,null,null,null,null,null,null,null,null,null,null,null,null,null,null,null,null,null,null,null,null,"Element C",null,null,null,null,null,null,null,null,null,null,null,null,null,null,null,null,null,null,null,null,null,null,null,null,null,null,null,null,null,null,null,null,null,{"$f":"IF(tblElemente[[#This Row],[Spalte78]]=\"elem\",tblElemente[[#This Row],[Spalte23]]&\" - \"&tblElemente[[#This Row],[Element]]&\" \"&tblElemente[[#This Row],[Spalte89]]&IF(tblElemente[[#This Row],[Spalte90]]=\"\",\"\",\" - \"&tblElemente[[#This Row],[Spalte90]])&IF(tblElemente[[#This Row],[Spalte91]]=\"\",\"\",\" (\"&tblElemente[[#This Row],[Spalte91]]&\")\"),\"\")","v":""}]
[null,"Kategorie 1","Kategorie 1.1","Kategorie 1.1.2",null,null,null,null,null,null,null,null,null,null,null,null,null,null,null,null,null,null,null,null,null,null,null,null,null,null,null,null,null,null,"Element D",null,null,null,null,null,null,null,null,null,null,null,null,null,null,null,null,null,null,null,null,null,null,null,null,null,null,null,null,null,null,null,null,null,{"$f":"IF(tblElemente[[#This Row],[Spalte78]]=\"elem\",tblElemente[[#This Row],[Spalte23]]&\" - \"&tblElemente[[#This Row],[Element]]&\" \"&tblElemente[[#This Row],[Spalte89]]&IF(tblElemente[[#This Row],[Spalte90]]=\"\",\"\",\" - \"&tblElemente[[#This Row],[Spalte90]])&IF(tblElemente[[#This Row],[Spalte91]]=\"\",\"\",\" (\"&tblElemente[[#This Row],[Spalte91]]&\")\"),\"\")","v":""}]
[null,"Kategorie 1","Kategorie 1.1","Kategorie 1.1.2",null,null,null,null,null,null,null,null,null,null,null,null,null,null,null,null,null,null,null,null,null,null,null,null,null,null,null,null,null,null,"Element E",null,null,null,null,null,null,null,null,null,null,null,null,null,null,null,null,null,null,null,null,null,null,null,null,null,null,null,null,null,null,null,null,null,{"$f":"IF(tblElemente[[#This Row],[Spalte78]]=\"elem\",tblElemente[[#This Row],[Spalte23]]&\" - \"&tblElemente[[#This Row],[Element]]&\" \"&tblElemente[[#This Row],[Spalte89]]&IF(tblElemente[[#This Row],[Spalte90]]=\"\",\"\",\" - \"&tblElemente[[#This Row],[Spalte90]])&IF(tblElemente[[#This Row],[Spalte91]]=\"\",\"\",\" (\"&tblElemente[[#This Row],[Spalte91]]&\")\"),\"\")","v":""}]
[null,"Kategorie 1","Kategorie 1.1","Kategorie 1.1.3",null,null,null,null,null,null,null,null,null,null,null,null,null,null,null,null,null,null,null,null,null,null,null,null,null,null,null,null,null,null,"Element F",null,null,null,null,null,null,null,null,null,null,null,null,null,null,null,null,null,null,null,null,null,null,null,null,null,null,null,null,null,null,null,null,null,{"$f":"IF(tblElemente[[#This Row],[Spalte78]]=\"elem\",tblElemente[[#This Row],[Spalte23]]&\" - \"&tblElemente[[#This Row],[Element]]&\" \"&tblElemente[[#This Row],[Spalte89]]&IF(tblElemente[[#This Row],[Spalte90]]=\"\",\"\",\" - \"&tblElemente[[#This Row],[Spalte90]])&IF(tblElemente[[#This Row],[Spalte91]]=\"\",\"\",\" (\"&tblElemente[[#This Row],[Spalte91]]&\")\"),\"\")","v":""}]
[null,"Kategorie 1","Kategorie 1.2","Kategorie 1.2.1",null,null,null,null,null,null,null,null,null,null,null,null,null,null,null,null,null,null,null,null,null,null,null,null,null,null,null,null,null,null,"Element G",null,null,null,null,null,null,null,null,null,null,null,null,null,null,null,null,null,null,null,null,null,null,null,null,null,null,null,null,null,null,null,null,null,{"$f":"IF(tblElemente[[#This Row],[Spalte78]]=\"elem\",tblElemente[[#This Row],[Spalte23]]&\" - \"&tblElemente[[#This Row],[Element]]&\" \"&tblElemente[[#This Row],[Spalte89]]&IF(tblElemente[[#This Row],[Spalte90]]=\"\",\"\",\" - \"&tblElemente[[#This Row],[Spalte90]])&IF(tblElemente[[#This Row],[Spalte91]]=\"\",\"\",\" (\"&tblElemente[[#This Row],[Spalte91]]&\")\"),\"\")","v":""}]
[null,"Kategorie 1","Kategorie 1.2","Kategorie 1.2.1",null,null,null,null,null,null,null,null,null,null,null,null,null,null,null,null,null,null,null,null,null,null,null,null,null,null,null,null,null,null,"Element H",null,null,null,null,null,null,null,null,null,null,null,null,null,null,null,null,null,null,null,null,null,null,null,null,null,null,null,null,null,null,null,null,null,{"$f":"IF(tblElemente[[#This Row],[Spalte78]]=\"elem\",tblElemente[[#This Row],[Spalte23]]&\" - \"&tblElemente[[#This Row],[Element]]&\" \"&tblElemente[[#This Row],[Spalte89]]&IF(tblElemente[[#This Row],[Spalte90]]=\"\",\"\",\" - \"&tblElemente[[#This Row],[Spalte90]])&IF(tblElemente[[#This Row],[Spalte91]]=\"\",\"\",\" (\"&tblElemente[[#This Row],[Spalte91]]&\")\"),\"\")","v":""}]
[null,"Kategorie 1","Kategorie 1.2","Kategorie 1.2.1",null,null,null,null,null,null,null,null,null,null,null,null,null,null,null,null,null,null,null,null,null,null,null,null,null,null,null,null,null,null,"Element I",null,null,null,null,null,null,null,null,null,null,null,null,null,null,null,null,null,null,null,null,null,null,null,null,null,null,null,null,null,null,null,null,null,{"$f":"IF(tblElemente[[#This Row],[Spalte78]]=\"elem\",tblElemente[[#This Row],[Spalte23]]&\" - \"&tblElemente[[#This Row],[Element]]&\" \"&tblElemente[[#This Row],[Spalte89]]&IF(tblElemente[[#This Row],[Spalte90]]=\"\",\"\",\" - \"&tblElemente[[#This Row],[Spalte90]])&IF(tblElemente[[#This Row],[Spalte91]]=\"\",\"\",\" (\"&tblElemente[[#This Row],[Spalte91]]&\")\"),\"\")","v":""}]
[null,"Kategorie 1","Kategorie 1.3","Kategorie 1.3.1",null,null,null,null,null,null,null,null,null,null,null,null,null,null,null,null,null,null,null,null,null,null,null,null,null,null,null,null,null,null,"Element J",null,null,null,null,null,null,null,null,null,null,null,null,null,null,null,null,null,null,null,null,null,null,null,null,null,null,null,null,null,null,null,null,null,{"$f":"IF(tblElemente[[#This Row],[Spalte78]]=\"elem\",tblElemente[[#This Row],[Spalte23]]&\" - \"&tblElemente[[#This Row],[Element]]&\" \"&tblElemente[[#This Row],[Spalte89]]&IF(tblElemente[[#This Row],[Spalte90]]=\"\",\"\",\" - \"&tblElemente[[#This Row],[Spalte90]])&IF(tblElemente[[#This Row],[Spalte91]]=\"\",\"\",\" (\"&tblElemente[[#This Row],[Spalte91]]&\")\"),\"\")","v":""}]
[null,"Kategorie 1","Kategorie 1.3","Kategorie 1.3.2",null,null,null,null,null,null,null,null,null,null,null,null,null,null,null,null,null,null,null,null,null,null,null,null,null,null,null,null,null,null,"Element K",null,null,null,null,null,null,null,null,null,null,null,null,null,null,null,null,null,null,null,null,null,null,null,null,null,null,null,null,null,null,null,null,null,{"$f":"IF(tblElemente[[#This Row],[Spalte78]]=\"elem\",tblElemente[[#This Row],[Spalte23]]&\" - \"&tblElemente[[#This Row],[Element]]&\" \"&tblElemente[[#This Row],[Spalte89]]&IF(tblElemente[[#This Row],[Spalte90]]=\"\",\"\",\" - \"&tblElemente[[#This Row],[Spalte90]])&IF(tblElemente[[#This Row],[Spalte91]]=\"\",\"\",\" (\"&tblElemente[[#This Row],[Spalte91]]&\")\"),\"\")","v":""}]
[null,"Kategorie 1","Kategorie 1.3","Kategorie 1.3.2",null,null,null,null,null,null,null,null,null,null,null,null,null,null,null,null,null,null,null,null,null,null,null,null,null,null,null,null,null,null,"Element L",null,null,null,null,null,null,null,null,null,null,null,null,null,null,null,null,null,null,null,null,null,null,null,null,null,null,null,null,null,null,null,null,null,{"$f":"IF(tblElemente[[#This Row],[Spalte78]]=\"elem\",tblElemente[[#This Row],[Spalte23]]&\" - \"&tblElemente[[#This Row],[Element]]&\" \"&tblElemente[[#This Row],[Spalte89]]&IF(tblElemente[[#This Row],[Spalte90]]=\"\",\"\",\" - \"&tblElemente[[#This Row],[Spalte90]])&IF(tblElemente[[#This Row],[Spalte91]]=\"\",\"\",\" (\"&tblElemente[[#This Row],[Spalte91]]&\")\"),\"\")","v":""}]
[null,"Kategorie 1","Kategorie 1.3","Kategorie 1.3.3",null,null,null,null,null,null,null,null,null,null,null,null,null,null,null,null,null,null,null,null,null,null,null,null,null,null,null,null,null,null,"Element M",null,null,null,null,null,null,null,null,null,null,null,null,null,null,null,null,null,null,null,null,null,null,null,null,null,null,null,null,null,null,null,null,null,{"$f":"IF(tblElemente[[#This Row],[Spalte78]]=\"elem\",tblElemente[[#This Row],[Spalte23]]&\" - \"&tblElemente[[#This Row],[Element]]&\" \"&tblElemente[[#This Row],[Spalte89]]&IF(tblElemente[[#This Row],[Spalte90]]=\"\",\"\",\" - \"&tblElemente[[#This Row],[Spalte90]])&IF(tblElemente[[#This Row],[Spalte91]]=\"\",\"\",\" (\"&tblElemente[[#This Row],[Spalte91]]&\")\"),\"\")","v":""}]
[null,"Kategorie 1","Kategorie 1.3","Kategorie 1.3.4",null,null,null,null,null,null,null,null,null,null,null,null,null,null,null,null,null,null,null,null,null,null,null,null,null,null,null,null,null,null,"Element N",null,null,null,null,null,null,null,null,null,null,null,null,null,null,null,null,null,null,null,null,null,null,null,null,null,null,null,null,null,null,null,null,null,{"$f":"IF(tblElemente[[#This Row],[Spalte78]]=\"elem\",tblElemente[[#This Row],[Spalte23]]&\" - \"&tblElemente[[#This Row],[Element]]&\" \"&tblElemente[[#This Row],[Spalte89]]&IF(tblElemente[[#This Row],[Spalte90]]=\"\",\"\",\" - \"&tblElemente[[#This Row],[Spalte90]])&IF(tblElemente[[#This Row],[Spalte91]]=\"\",\"\",\" (\"&tblElemente[[#This Row],[Spalte91]]&\")\"),\"\")","v":""}]
[null,"Kategorie 1","Kategorie 1.3","Kategorie 1.3.4",null,null,null,null,null,null,null,null,null,null,null,null,null,null,null,null,null,null,null,null,null,null,null,null,null,null,null,null,null,null,"Element O",null,null,null,null,null,null,null,null,null,null,null,null,null,null,null,null,null,null,null,null,null,null,null,null,null,null,null,null,null,null,null,null,null,{"$f":"IF(tblElemente[[#This Row],[Spalte78]]=\"elem\",tblElemente[[#This Row],[Spalte23]]&\" - \"&tblElemente[[#This Row],[Element]]&\" \"&tblElemente[[#This Row],[Spalte89]]&IF(tblElemente[[#This Row],[Spalte90]]=\"\",\"\",\" - \"&tblElemente[[#This Row],[Spalte90]])&IF(tblElemente[[#This Row],[Spalte91]]=\"\",\"\",\" (\"&tblElemente[[#This Row],[Spalte91]]&\")\"),\"\")","v":""}]
[null,"Kategorie 2","Kategorie 2.1","Kategorie 2.1.1","Kategorie 2.1.1.1",null,null,null,null,null,null,null,null,null,null,null,null,null,null,null,null,null,null,null,null,null,null,null,null,null,null,null,null,null,"Element P",null,null,null,null,null,null,null,null,null,null,null,null,null,null,null,null,null,null,null,null,null,null,null,null,null,null,null,null,null,null,null,null,null,{"$f":"IF(tblElemente[[#This Row],[Spalte78]]=\"elem\",tblElemente[[#This Row],[Spalte23]]&\" - \"&tblElemente[[#This Row],[Element]]&\" \"&tblElemente[[#This Row],[Spalte89]]&IF(tblElemente[[#This Row],[Spalte90]]=\"\",\"\",\" - \"&tblElemente[[#This Row],[Spalte90]])&IF(tblElemente[[#This Row],[Spalte91]]=\"\",\"\",\" (\"&tblElemente[[#This Row],[Spalte91]]&\")\"),\"\")","v":""}]
[null,"Kategorie 2","Kategorie 2.1","Kategorie 2.1.1","Kategorie 2.1.1.2","Kategorie 2.1.1.1",null,null,null,null,null,null,null,null,null,null,null,null,null,null,null,null,null,null,null,null,null,null,null,null,null,null,null,null,"Element Q",null,null,null,null,null,null,null,null,null,null,null,null,null,null,null,null,null,null,null,null,null,null,null,null,null,null,null,null,null,null,null,null,null,{"$f":"IF(tblElemente[[#This Row],[Spalte78]]=\"elem\",tblElemente[[#This Row],[Spalte23]]&\" - \"&tblElemente[[#This Row],[Element]]&\" \"&tblElemente[[#This Row],[Spalte89]]&IF(tblElemente[[#This Row],[Spalte90]]=\"\",\"\",\" - \"&tblElemente[[#This Row],[Spalte90]])&IF(tblElemente[[#This Row],[Spalte91]]=\"\",\"\",\" (\"&tblElemente[[#This Row],[Spalte91]]&\")\"),\"\")","v":""}]
[null,"Kategorie 2","Kategorie 2.1","Kategorie 2.1.1","Kategorie 2.1.1.3",null,null,null,null,null,null,null,null,null,null,null,null,null,null,null,null,null,null,null,null,null,null,null,null,null,null,null,null,null,"Element R",null,null,null,null,null,null,null,null,null,null,null,null,null,null,null,null,null,null,null,null,null,null,null,null,null,null,null,null,null,null,null,null,null,{"$f":"IF(tblElemente[[#This Row],[Spalte78]]=\"elem\",tblElemente[[#This Row],[Spalte23]]&\" - \"&tblElemente[[#This Row],[Element]]&\" \"&tblElemente[[#This Row],[Spalte89]]&IF(tblElemente[[#This Row],[Spalte90]]=\"\",\"\",\" - \"&tblElemente[[#This Row],[Spalte90]])&IF(tblElemente[[#This Row],[Spalte91]]=\"\",\"\",\" (\"&tblElemente[[#This Row],[Spalte91]]&\")\"),\"\")","v":""}]
[null,"Kategorie 2","Kategorie 2.1","Kategorie 2.1.2",null,null,null,null,null,null,null,null,null,null,null,null,null,null,null,null,null,null,null,null,null,null,null,null,null,null,null,null,null,null,"Element S",null,null,null,null,null,null,null,null,null,null,null,null,null,null,null,null,null,null,null,null,null,null,null,null,null,null,null,null,null,null,null,null,null,{"$f":"IF(tblElemente[[#This Row],[Spalte78]]=\"elem\",tblElemente[[#This Row],[Spalte23]]&\" - \"&tblElemente[[#This Row],[Element]]&\" \"&tblElemente[[#This Row],[Spalte89]]&IF(tblElemente[[#This Row],[Spalte90]]=\"\",\"\",\" - \"&tblElemente[[#This Row],[Spalte90]])&IF(tblElemente[[#This Row],[Spalte91]]=\"\",\"\",\" (\"&tblElemente[[#This Row],[Spalte91]]&\")\"),\"\")","v":""}]
[null,"Kategorie 2","Kategorie 2.1","Kategorie 2.1.2",null,null,null,null,null,null,null,null,null,null,null,null,null,null,null,null,null,null,null,null,null,null,null,null,null,null,null,null,null,null,"Element T",null,null,null,null,null,null,null,null,null,null,null,null,null,null,null,null,null,null,null,null,null,null,null,null,null,null,null,null,null,null,null,null,null,{"$f":"IF(tblElemente[[#This Row],[Spalte78]]=\"elem\",tblElemente[[#This Row],[Spalte23]]&\" - \"&tblElemente[[#This Row],[Element]]&\" \"&tblElemente[[#This Row],[Spalte89]]&IF(tblElemente[[#This Row],[Spalte90]]=\"\",\"\",\" - \"&tblElemente[[#This Row],[Spalte90]])&IF(tblElemente[[#This Row],[Spalte91]]=\"\",\"\",\" (\"&tblElemente[[#This Row],[Spalte91]]&\")\"),\"\")","v":""}]
[null,"Kategorie 2","Kategorie 2.1","Kategorie 2.1.3",null,null,null,null,null,null,null,null,null,null,null,null,null,null,null,null,null,null,null,null,null,null,null,null,null,null,null,null,null,null,"Element U",null,null,null,null,null,null,null,null,null,null,null,null,null,null,null,null,null,null,null,null,null,null,null,null,null,null,null,null,null,null,null,null,null,{"$f":"IF(tblElemente[[#This Row],[Spalte78]]=\"elem\",tblElemente[[#This Row],[Spalte23]]&\" - \"&tblElemente[[#This Row],[Element]]&\" \"&tblElemente[[#This Row],[Spalte89]]&IF(tblElemente[[#This Row],[Spalte90]]=\"\",\"\",\" - \"&tblElemente[[#This Row],[Spalte90]])&IF(tblElemente[[#This Row],[Spalte91]]=\"\",\"\",\" (\"&tblElemente[[#This Row],[Spalte91]]&\")\"),\"\")","v":""}]
[null,"Kategorie 2","Kategorie 2.2","Kategorie 2.2.1",null,null,null,null,null,null,null,null,null,null,null,null,null,null,null,null,null,null,null,null,null,null,null,null,null,null,null,null,null,null,"Element V",null,null,null,null,null,null,null,null,null,null,null,null,null,null,null,null,null,null,null,null,null,null,null,null,null,null,null,null,null,null,null,null,null,{"$f":"IF(tblElemente[[#This Row],[Spalte78]]=\"elem\",tblElemente[[#This Row],[Spalte23]]&\" - \"&tblElemente[[#This Row],[Element]]&\" \"&tblElemente[[#This Row],[Spalte89]]&IF(tblElemente[[#This Row],[Spalte90]]=\"\",\"\",\" - \"&tblElemente[[#This Row],[Spalte90]])&IF(tblElemente[[#This Row],[Spalte91]]=\"\",\"\",\" (\"&tblElemente[[#This Row],[Spalte91]]&\")\"),\"\")","v":""}]
[null,"Kategorie 2","Kategorie 2.2","Kategorie 2.2.1",null,null,null,null,null,null,null,null,null,null,null,null,null,null,null,null,null,null,null,null,null,null,null,null,null,null,null,null,null,null,"Element W",null,null,null,null,null,null,null,null,null,null,null,null,null,null,null,null,null,null,null,null,null,null,null,null,null,null,null,null,null,null,null,null,null,{"$f":"IF(tblElemente[[#This Row],[Spalte78]]=\"elem\",tblElemente[[#This Row],[Spalte23]]&\" - \"&tblElemente[[#This Row],[Element]]&\" \"&tblElemente[[#This Row],[Spalte89]]&IF(tblElemente[[#This Row],[Spalte90]]=\"\",\"\",\" - \"&tblElemente[[#This Row],[Spalte90]])&IF(tblElemente[[#This Row],[Spalte91]]=\"\",\"\",\" (\"&tblElemente[[#This Row],[Spalte91]]&\")\"),\"\")","v":""}]
[null,"Kategorie 2","Kategorie 2.2","Kategorie 2.2.1",null,null,null,null,null,null,null,null,null,null,null,null,null,null,null,null,null,null,null,null,null,null,null,null,null,null,null,null,null,null,"Element X",null,null,null,null,null,null,null,null,null,null,null,null,null,null,null,null,null,null,null,null,null,null,null,null,null,null,null,null,null,null,null,null,null,{"$f":"IF(tblElemente[[#This Row],[Spalte78]]=\"elem\",tblElemente[[#This Row],[Spalte23]]&\" - \"&tblElemente[[#This Row],[Element]]&\" \"&tblElemente[[#This Row],[Spalte89]]&IF(tblElemente[[#This Row],[Spalte90]]=\"\",\"\",\" - \"&tblElemente[[#This Row],[Spalte90]])&IF(tblElemente[[#This Row],[Spalte91]]=\"\",\"\",\" (\"&tblElemente[[#This Row],[Spalte91]]&\")\"),\"\")","v":""}]
[null,"Kategorie 2","Kategorie 2.3","Kategorie 2.3.1",null,null,null,null,null,null,null,null,null,null,null,null,null,null,null,null,null,null,null,null,null,null,null,null,null,null,null,null,null,null,"Element Y",null,null,null,null,null,null,null,null,null,null,null,null,null,null,null,null,null,null,null,null,null,null,null,null,null,null,null,null,null,null,null,null,null,{"$f":"IF(tblElemente[[#This Row],[Spalte78]]=\"elem\",tblElemente[[#This Row],[Spalte23]]&\" - \"&tblElemente[[#This Row],[Element]]&\" \"&tblElemente[[#This Row],[Spalte89]]&IF(tblElemente[[#This Row],[Spalte90]]=\"\",\"\",\" - \"&tblElemente[[#This Row],[Spalte90]])&IF(tblElemente[[#This Row],[Spalte91]]=\"\",\"\",\" (\"&tblElemente[[#This Row],[Spalte91]]&\")\"),\"\")","v":""}]
[null,"Kategorie 2","Kategorie 2.3","Kategorie 2.3.2",null,null,null,null,null,null,null,null,null,null,null,null,null,null,null,null,null,null,null,null,null,null,null,null,null,null,null,null,null,null,"Element Z",null,null,null,null,null,null,null,null,null,null,null,null,null,null,null,null,null,null,null,null,null,null,null,null,null,null,null,null,null,null,null,null,null,{"$f":"IF(tblElemente[[#This Row],[Spalte78]]=\"elem\",tblElemente[[#This Row],[Spalte23]]&\" - \"&tblElemente[[#This Row],[Element]]&\" \"&tblElemente[[#This Row],[Spalte89]]&IF(tblElemente[[#This Row],[Spalte90]]=\"\",\"\",\" - \"&tblElemente[[#This Row],[Spalte90]])&IF(tblElemente[[#This Row],[Spalte91]]=\"\",\"\",\" (\"&tblElemente[[#This Row],[Spalte91]]&\")\"),\"\")","v":""}]
[null,"Kategorie 2","Kategorie 2.3","Kategorie 2.3.2",null,null,null,null,null,null,null,null,null,null,null,null,null,null,null,null,null,null,null,null,null,null,null,null,null,null,null,null,null,null,"Element Aa",null,null,null,null,null,null,null,null,null,null,null,null,null,null,null,null,null,null,null,null,null,null,null,null,null,null,null,null,null,null,null,null,null,{"$f":"IF(tblElemente[[#This Row],[Spalte78]]=\"elem\",tblElemente[[#This Row],[Spalte23]]&\" - \"&tblElemente[[#This Row],[Element]]&\" \"&tblElemente[[#This Row],[Spalte89]]&IF(tblElemente[[#This Row],[Spalte90]]=\"\",\"\",\" - \"&tblElemente[[#This Row],[Spalte90]])&IF(tblElemente[[#This Row],[Spalte91]]=\"\",\"\",\" (\"&tblElemente[[#This Row],[Spalte91]]&\")\"),\"\")","v":""}]
[null,"Kategorie 2","Kategorie 2.3","Kategorie 2.3.3",null,null,null,null,null,null,null,null,null,null,null,null,null,null,null,null,null,null,null,null,null,null,null,null,null,null,null,null,null,null,"Element Ab",null,null,null,null,null,null,null,null,null,null,null,null,null,null,null,null,null,null,null,null,null,null,null,null,null,null,null,null,null,null,null,null,null,{"$f":"IF(tblElemente[[#This Row],[Spalte78]]=\"elem\",tblElemente[[#This Row],[Spalte23]]&\" - \"&tblElemente[[#This Row],[Element]]&\" \"&tblElemente[[#This Row],[Spalte89]]&IF(tblElemente[[#This Row],[Spalte90]]=\"\",\"\",\" - \"&tblElemente[[#This Row],[Spalte90]])&IF(tblElemente[[#This Row],[Spalte91]]=\"\",\"\",\" (\"&tblElemente[[#This Row],[Spalte91]]&\")\"),\"\")","v":""}]
[null,"Kategorie 2","Kategorie 2.3","Kategorie 2.3.4",null,null,null,null,null,null,null,null,null,null,null,null,null,null,null,null,null,null,null,null,null,null,null,null,null,null,null,null,null,null,"Element Ac",null,null,null,null,null,null,null,null,null,null,null,null,null,null,null,null,null,null,null,null,null,null,null,null,null,null,null,null,null,null,null,null,null,{"$f":"IF(tblElemente[[#This Row],[Spalte78]]=\"elem\",tblElemente[[#This Row],[Spalte23]]&\" - \"&tblElemente[[#This Row],[Element]]&\" \"&tblElemente[[#This Row],[Spalte89]]&IF(tblElemente[[#This Row],[Spalte90]]=\"\",\"\",\" - \"&tblElemente[[#This Row],[Spalte90]])&IF(tblElemente[[#This Row],[Spalte91]]=\"\",\"\",\" (\"&tblElemente[[#This Row],[Spalte91]]&\")\"),\"\")","v":""}]
[null,"Kategorie 2","Kategorie 2.3","Kategorie 2.3.4",null,null,null,null,null,null,null,null,null,null,null,null,null,null,null,null,null,null,null,null,null,null,null,null,null,null,null,null,null,null,"Element Ad",null,null,null,null,null,null,null,null,null,null,null,null,null,null,null,null,null,null,null,null,null,null,null,null,null,null,null,null,null,null,null,null,null,{"$f":"IF(tblElemente[[#This Row],[Spalte78]]=\"elem\",tblElemente[[#This Row],[Spalte23]]&\" - \"&tblElemente[[#This Row],[Element]]&\" \"&tblElemente[[#This Row],[Spalte89]]&IF(tblElemente[[#This Row],[Spalte90]]=\"\",\"\",\" - \"&tblElemente[[#This Row],[Spalte90]])&IF(tblElemente[[#This Row],[Spalte91]]=\"\",\"\",\" (\"&tblElemente[[#This Row],[Spalte91]]&\")\"),\"\")","v":""}]